Cogmind - Beta 11.1 @@@ ROGUE MODE // 2022.05.06 @ 20:53:29 Player: CrossedViper Result: Destroyed by D-53 Grenadier with Mini Grenade Launcher Performance ------------- Evolutions (0) 0 Regions Visited (2) 400 Robots Destroyed (24) 120 Value Destroyed (467) 467 Prototype IDs (0) 0 Alien Tech Used (0) 0 Bonus (0) 0 TOTAL SCORE: 987 Bonus ------- None Cogmind --------- Core Integrity 0/250 Matter 300/300 Energy 100/100 System Corruption 0% Temperature Cool (0) Movement Treading (240) Ox1 Location -10/Mines Parts ------- > --- POWER (1) -------- (None) > --- PROPULSION (2) --- Light Treads > --- UTILITY (2) ------ Large Storage Unit Structural Scanner > --- WEAPON (2) ------- Small Laser Assault Rifle > --- INVENTORY (15) --- Light Ion Engine Aluminum Leg Aluminum Leg Transport Network Coupler Small Laser Beam Cannon Light Assault Rifle Light Assault Rifle Peak State ------------ > --- POWER ------------ Light Ion Engine > --- PROPULSION ------- Light Treads Light Treads > --- UTILITY ---------- Heat Sink Large Storage Unit > --- WEAPON ----------- Assault Rifle Assault Rifle > --- INVENTORY -------- Light Ion Engine Light Ion Engine Light Treads Aluminum Leg Aluminum Leg Transport Network Coupler Small Laser Small Laser Light Assault Rifle Light Assault Rifle [Rating: 8] Favorites ----------- Power Light Ion Engine Engine Light Ion Engine Propulsion Light Treads Treads Light Treads Utility Large Storage Unit Device Heat Sink Storage Large Storage Unit Weapon Assault Rifle Energy Gun Small Laser Ballistic Gun Assault Rifle Build | -11 -10 -10 ------- Run | Scr Mat Min Slots Evolved . | . . . Power . | . . . Propulsion . | . . . Utility . | . . . Weapon . | . . . Parts Attached 13 | 7 2 4 Power 2 | 1 . 1 Engine 2 | 1 . 1 Core . | . . . Reactor . | . . . Propulsion 3 | 2 . 1 Treads 3 | 2 . 1 Leg . | . . . Wheel . | . . . Hover . | . . . Flight . | . . . Utility 5 | 2 2 1 Device 3 | 1 1 1 Storage 2 | 1 1 . Processor . | . . . Hackware . | . . . Protection . | . . . Artifact . | . . . Weapon 3 | 2 . 1 Energy Gun 1 | . . 1 Energy Cannon . | . . . Ballistic Gun 2 | 2 . . Ballistic Cannon . | . . . Launcher . | . . . Special Weapon . | . . . Impact Weapon . | . . . Slashing Weapon . | . . . Piercing Weapon . | . . . Special Melee Weapon . | . . . Unidentified Prototypes . | . . . Parts Lost 7 | . 1 6 Power 2 | . . 2 Propulsion 2 | . . 2 Utility 2 | . 1 1 Weapon 1 | . . 1 Highest Loss Streak 3 | . 1 3 To Critical Strikes . | . . . Average Slot Usage (%) 94 | . 97 92 Engine 13 | . 14 13 Treads 27 | . 28 27 Device 9 | . 11 8 Storage 14 | . 14 14 Energy Gun 5 | . . 11 Ballistic Gun 22 | . 28 16 Naked Turns . | . . . Heaviest Build 28 | 13 28 28 Greatest Support 40 | 40 40 40 Greatest Overweight (x) . | . . . Average Overweight (x) . | . . . Largest Inventory Capacity 15 | 8 15 15 Average Capacity 12 | 7 11 15 Most Carried 11 | 5 11 11 Average Carried 7 | 3 7 8 Final Capacity 15 | 8 15 15 Final Carried 11 | 4 11 8 Class Distribution -------------------- 100% | Mutant Dominant Class ---------------- Mutant | -10/Materials Mutant | -10/Mines Resources | -11 -10 -10 ----------- Run | Scr Mat Min Matter Collected 656 | 297 210 149 Remotely . | . . . Salvage Created 677 | 80 361 236 Parts 50 | 14 16 20 Haulers Intercepted 1 | . 1 . Recyclers Shooed 2 | 1 . 1 Parts Field Recycled . | . . . Retrieved Matter . | . . . Parts Self-Destructed . | . . . Prevented . | . . . Kills | -11 -10 -10 ------- Run | Scr Mat Min Combat Hostiles Destroyed 15 | . 8 7 Guns 15 | . 8 7 Classes Destroyed 6 | 2 3 1 Worker 3 | 2 1 . Builder 1 | . . 1 Tunneler 4 | 3 . 1 Hauler 1 | . 1 . Swarmer 5 | . 2 3 Grunt 10 | . 6 4 Best Kill Streak 4 | 3 4 3 Combat Bots Only 4 | . 4 3 Max Kills in Single Turn 2 | 2 1 1 Gunslinging . | . . . Exploded . | . . . Melee . | . . . Uniques/NPCs Destroyed . | . . . Combat | -11 -10 -10 -------- Run | Scr Mat Min Damage Taken 999 | . 356 643 Core 256 | . 48 208 Absorbed by Shields . | . . . Core Remaining (%) 100 | 100 . . Volleys Fired 65 | 9 28 28 Largest 2 | 2 2 2 Hottest 60 | 40 40 60 Shots Fired 129 | 18 56 55 Gun 129 | 18 56 55 Cannon . | . . . Launcher . | . . . Special . | . . . Kinetic 117 | 18 56 43 Thermal 12 | . . 12 Explosive . | . . . Electromagnetic . | . . . Robot Hit Streak 15 | 6 15 7 Robot Miss Streak 6 | 2 6 3 Penetration Max . | . . . Secondary Targets 2 | . 1 1 Max Gunslinging Chain 1 | . 1 1 Shots Hit Robots 85 | 12 40 33 Core Hits 37 | 5 16 16 Critical Kills . | . . . Critical Parts Destroyed . | . . . Critical Strikes . | . . . Melee Attacks . | . . . Impact . | . . . Slashing . | . . . Piercing . | . . . Sneak Attacks . | . . . Combat Hostiles . | . . . Follow-up Attacks . | . . . Damage Inflicted 1142 | 164 518 460 Guns 1139 | 164 518 457 Cannons . | . . . Explosions . | . . . Melee . | . . . Ramming 3 | . . 3 Kinetic 1065 | 164 518 383 Thermal 74 | . . 74 Explosive . | . . . Electromagnetic . | . . . Impact . | . . . Slashing . | . . . Piercing . | . . . Highest Corruption . | . . . Average Corruption . | . . . Corruption Purged . | . . . Corruption Blocked . | . . . Overload Shots . | . . . Overflow Damage . | . . . Projectiles . | . . . Explosions . | . . . Melee . | . . . Knockbacks . | . . . Impact . | . . . Kinetic . | . . . Secondary . | . . . Self-Inflicted Damage . | . . . Shots . | . . . Rammed . | . . . Targets Rammed 1 | . . 1 Kicked . | . . . Crushed 1 | . . 1 Highest Temperature 141 | . 2 141 Average Temperature 63 | . 2 74 Received Heat Transfer 426 | . 132 294 Siege Activations . | . . . Robots Corrupted . | . . . Combat Hostiles . | . . . Parts Fried . | . . . Impact Corruptions . | . . . Robots Melted . | . . . Combat Hostiles . | . . . Parts Melted . | . . . Heat Transferred 175 | . . 175 Parts Sabotaged . | . . . Parts Stolen . | . . . Parts Stripped . | . . . Power Chain Reactions . | . . . Missiles Intercepted . | . . . Alert | -11 -10 -10 ------- Run | Scr Mat Min Peak Influence 270 | 25 259 270 Initial 100 | . 16 100 Average 158 | 6 172 203 Maximum Alert Level 1 | . 1 1 Low Security (%) 64 | 100 56 57 Level 1 35 | . 43 42 Level 2 . | . . . Level 3 . | . . . Level 4 . | . . . Level 5 . | . . . High Security . | . . . Max Security . | . . . Squads Dispatched 2 | . 2 . Investigation 2 | . 2 . Extermination . | . . . Reinforcement . | . . . Assault . | . . . Garrison . | . . . Intercept . | . . . Searches Triggered . | . . . Construction Impeded . | . . . Haulers Reinforced . | . . . Active Scanning Responses . | . . . Cargo Convoy Interrupts . | . . . Stealth | -11 -10 -10 --------- Run | Scr Mat Min Distress Signals 1 | . 1 . Communications Jammed . | . . . Distress Signals . | . . . Times Spotted 25 | . 12 13 Peak Tracking Total 15 | . 5 15 Tactical Retreats . | . . . Traps | -11 -10 -10 ------- Run | Scr Mat Min Traps Triggered 1 | . 1 . Indirectly . | . . . Trap Hack Attempts . | . . . Triggered . | . . . Disarmed . | . . . Reprogrammed . | . . . Reused . | . . . Traps Extracted . | . . . Installed . | . . . Triggered . | . . . Machines | -11 -10 -10 ---------- Run | Scr Mat Min Machines Disabled . | . . . Max in Single Turn . | . . . Machines Sabotaged . | . . . Garrisons Compromised . | . . . Overloaded Fab Kills . | . . . Hacking | -11 -10 -10 --------- Run | Scr Mat Min Machines Accessed 3 | . 3 . Terminals 3 | . 3 . Fabricators . | . . . Repair Stations . | . . . Recycling Units . | . . . Scanalyzers . | . . . Garrison Access . | . . . Total Hacks 11 | . 11 . Successful 4 | . 4 . Failed 7 | . 7 . Catastrophic . | . . . Database Lockouts . | . . . Manual 11 | . 11 . Terminals 11 | . 11 . Fabricators . | . . . Repair Stations . | . . . Recycling Units . | . . . Scanalyzers . | . . . Garrison Access . | . . . Terminal Hacks 4 | . 4 . Robot Analysis 4 | . 4 . Fabricator Hacks . | . . . Repair Station Hacks . | . . . Recycling Unit Hacks . | . . . Scanalyzer . | . . . Garrison Access Hacks . | . . . Unauthorized Hacks . | . . . Terminals . | . . . Fabricators . | . . . Repair Stations . | . . . Recycling Units . | . . . Scanalyzers . | . . . Garrison Access . | . . . Data Cores Recovered . | . . . Used . | . . . Hacking Detections 3 | . 3 . Full Trace Events 2 | . 2 . Feedback Events . | . . . Feedback Blocked . | . . . Robot Schematics Acquired . | . . . Robots Built . | . . . Authchips . | . . . Time . | . . . Total Robot Build Rating . | . . . Part Schematics Acquired . | . . . Parts Built . | . . . Authchips . | . . . Time . | . . . Total Part Build Rating . | . . . Parts Repaired . | . . . Time . | . . . Parts Recycled . | . . . Recycled Matter . | . . . Retrieved Matter . | . . . Retrieved Components . | . . . Parts Scanalyzed . | . . . Part Schematics Acquired . | . . . Parts Damaged . | . . . Bothacking | -11 -10 -10 ------------ Run | Scr Mat Min Used RIF Installer . | . . . Robots Hacked . | . . . Non-combat . | . . . Combat . | . . . Robot Hacks Applied . | . . . Relay Couplers Released . | . . . Fabnet Peak Effective % . | . . . Robots Rewired . | . . . Allies Hacked . | . . . Hacks Repelled . | . . . Allies | -11 -10 -10 -------- Run | Scr Mat Min Total Allies . | . . . Largest Group . | . . . Highest-Rated Group . | . . . Highest-Rated Ally . | . . . Total Orders . | . . . Ally Attacks . | . . . Total Damage . | . . . Kills . | . . . Allies Corrupted . | . . . Allies Melted . | . . . Intel | -11 -10 -10 ------- Run | Scr Mat Min Robot Analysis Total 4 | . 4 . Derelict Logs Recovered 2 | . . 2 Drone Launches . | . . . Drone Recoveries . | . . . Exploration | -11 -10 -10 ------------- Run | Scr Mat Min Turns Passed 794 | 130 323 341 Spaces Moved 350 | 62 137 151 Core 15 | 15 . . Treads 335 | 47 137 151 Legs . | . . . Wheels . | . . . Hover . | . . . Flight . | . . . Fastest Speed 50 | 50 160 160 Average Speed 155 | 133 160 160 Slowest Speed 160 | 160 160 160 Overloaded Moves . | . . . Propulsion Burnouts . | . . . Robots Hopped . | . . . Cave-ins Triggered . | . . . Exploration Rate (%) 26 | 4 31 45 Regions Visited 2 Branch Regions 1 Pre-discovered Areas 2 | . . 2 Known Exits Taken . | . . . Unknown Exits Taken 2 | 1 1 . Scrap Searched . | . . . Spaces Dug . | . . . Terrain Destroyed . | . . . Melee . | . . . Projectile . | . . . AOE . | . . . Terrain Rammed . | . . . Walls Destroyed . | . . . Machines Disabled . | . . . Actions | -11 -10 -10 --------- Run | Scr Mat Min Total 471 | 91 185 195 Wait 24 | 3 11 10 Move 348 | 61 136 151 Hop . | . . . Pick Up 19 | 11 7 1 Fast Attach 1 | . 1 . Attach 11 | 7 . 4 Detach . | . . . Swap 1 | . 1 . Drop 1 | . 1 . Fire 65 | 9 28 28 Melee . | . . . Ram . | . . . Kick . | . . . Crush 1 | . . 1 Escape Stasis . | . . . Rewire . | . . . Trap . | . . . Miscellaneous . | . . . Route ------- -11/Scrapyard -10/Materials -10/Mines History --------- Turn | Location | Event 6 | -11/Scrapyard | Discovered new exit (range 15) 131 | -11/Scrapyard | Entered Materials 317 | -10/Materials | Build established: Mutant 328 | -10/Materials | Discovered new exit (range 15) 454 | -10/Materials | Entered Mines 550 | -10/Mines | Lost 3 parts (1n1u1w) 578 | -10/Mines | Learned location of Recycling (-8) 747 | -10/Mines | Core integrity fell below 50% 787 | -10/Mines | Assembled infested the area 792 | -10/Mines | Assisted by a Guerilla fighting off Assembled 795 | -10/Mines | Destroyed by D-53 Grenadier with Mini Grenade Launcher Last Messages --------------- 00716_ Crushed T-07 Excavator. 00716_ T-07 Excavator destroyed. 00735_ G-34 Mercenary destroyed. 00735_ Switching to secondary target: G-47 Trooper. 00740_ Critical hit (Burn: +37). 00753_ G-47 Trooper destroyed. 00758_ K-01 Serf collects debris. 00760_ Acquired 43 matter. 00761_ K-01 Serf collects debris. 00787_ ALERT: Infestation in the mines, dispatching Demolisher response squad. 00787_ K-01 Serf destroyed. 00792_ A derelict emerges from the shadows: "You need to get out of here! I've been tracking a group of Assembled to figure out where they're coming from, and they're closing on this area, come on!" 00792_ C-30 ARC bursts open, deploying its payload. 00792_ D-53 Grenadier unfolds itself. 00793_ Lgt. Ion Engine destroyed. 00795_ K-01 Serf collects debris. 00795_ Lgt. Treads destroyed. Map ----- +----------------------------------------------------+ | ?????????????????????????????????????????????????? | | ?????????????????????????????????????????????????? | | ?????????????????????????????????????????????????? | | ?????????????????????????????????????????????????? | | ?????????????????????????????????????????????????? | | ?????????????????????????????????????????????????? | | ?????????????????????????????????????????????????? | | ?????????????????????????????????????????????????? | | ?????????????????????????????????????????????????? | | ?????????????????????????????????????????????????? | | ??????????????????????######?????????????????????? | | ?????????????????????########????? ???????????? | | ????????????????????#### ###???? ???????????? | | ???????????###??????### ##???? t ??????????? | | ???????????###?????### #??## k ??????????? | | ?????????? ???#### ##??## % u #?????????? | | ???????????? =%! #### ##### ##?????????? | | ?????????????## a### #####d ##?????????# | | ?????????????## a u ### d ###?????????? | | ?????????????## a h ##???????????????? | | ?????????????###??## ###???????????????? | | ??????????????????### ###??#######?###???? | | ??????????????????#### ####??#######?# ???? | | ???????????????????### ##???## #### ##??? | | ????????????????????## ##???## #### ###?? | | ????????????????????## @ ##???## ### ####? | | ???????????????????### ###???## ## ###? | | ??????????????????#### ##???## =! ##? | | ??????????????????### ###??### !%* ##? | | ??????????????????## #####?#### | ###? | | ??????????????????## ######??### ## ##?? | | ??????????????????## #####????## ### #### | | ??????????????????## ####?####### #### | | ??????????????????## =%###?######## ########### | | ??????????????????##%k|####### #### #####???#### | | ??????????????????## =* ##### #### ###?????# | | ??????????????????### #### #### ##?????# | | ??????????????????#### ##### #### ##?????# | | ???????????????????#### ##### #### ##?????## | | ????????????????????### #### ##### ###?????## | | ?????????????????????## ### ##### ####?????## | | ?????????????????????## #### ###??????? | | ?????????????????????## ## ##??????? | | ?????????????????????## ### ##??????? | | ?????????????????????### #### ## ###??????? | | ?????????????????????########## #########??????? | | ??????????????????????####################???????? | | ?????????????????????????????#######?????????????? | | | | | +----------------------------------------------------+ Best States ------------- Heat Dissipation 35 Energy Generation 10 Energy Capacity 125 Matter Stores 300 Matter Capacity 300 Sight Range 16 Terrain Scan Density 10 Evasion (%) 50 Recoil Reduction 2 Item Schematics ----------------- None Robot Schematics ------------------ None Fabricated ------------ Nothing Alien Tech Used ----------------- None Achievements -------------- None Challenges ------------ None Game ------ Seed LobotomyModifiedFlamer Manual? 0 Play Time 00:07:02 Cumulative 643.0 hours Start 2022.05.06 @ 20:42:03 End 2022.05.06 @ 20:53:29 Sessions 1 Manual Loads 0 Difficulty Rogue Special Mode None Game No. 430 Rogue 423 Adventurer 0 Explorer 7 Win Type - Total 45 Types 16/4/17/2/0/1/3/1/1 Lore% 87 Gallery% 95 Achievement% 82 Wizard Run 0 Options --------- ASCII 0 Keyboard 0 Movement Numpad Keybinds 0 Fullscreen 1 Font 18/X11Bold Map View 76x50 Tactical HUD 1 Map Filters NONE Filters NONE Steam 1 RUN: 01bd268b-2adf-4cfa-adf9-d568c48c07da